Workbook

Sheet 18 időszakos költségvetés
B1: vállalati költségvetés
G2: KEZDŐ DÁTUM | H2: 2011-01-01 | I2: IDŐSZAK HOSSZA (NAPBAN) | K2: 14 | L2: BEFEJEZŐ DÁTUM | M2: =TEXT(T5,"éééé.hh.nn.") -> 2012.08.26.
C5: =UPPER(TEXT(H2,"nn-hhh")) -> 01-JAN | D5: =UPPER(TEXT(C5+NapIntervallum,"nn-hhh")) -> 15-JAN | E5: 29-JAN | F5: 12-FEBR | G5: 26-FEBR | H5: 11-MÁRC | I5: 25-MÁRC | J5: 08-ÁPR | K5: 22-ÁPR | L5: 06-MÁJ | M5: 20-MÁJ | N5: 03-JÚN | O5: 17-JÚN | P5: 01-JÚL | Q5: 15-JÚL | R5: 29-JÚL | S5: 12-AUG | T5: 26-AUG | U5: ÖSSZESEN | V5: TREND
B6: NETTÓ BEVÉTEL | C6: =TáblázatBevétel[[#Totals],[1. hét]]-TáblázatKiadások[[#Totals],[1. hét]] -> 1,750.00 Ft | D6: =TáblázatBevétel[[#Totals],[2. hét]]-TáblázatKiadások[[#Totals],[2. hét]] -> 2,236.00 Ft | E6: =TáblázatBevétel[[#Totals],[3. hét]]-TáblázatKiadások[[#Totals],[3. hét]] -> 1,442.00 Ft | F6: =TáblázatBevétel[[#Totals],[4. hét]]-TáblázatKiadások[[#Totals],[4. hét]] -> 2,253.00 Ft | G6: =TáblázatBevétel[[#Totals],[5. hét]]-TáblázatKiadások[[#Totals],[5. hét]] -> 1,533.00 Ft | H6: =TáblázatBevétel[[#Totals],[6. hét]]-TáblázatKiadások[[#Totals],[6. hét]] -> 1,086.00 Ft | I6: =TáblázatBevétel[[#Totals],[7. hét]]-TáblázatKiadások[[#Totals],[7. hét]] -> 1,594.00 Ft | J6: =TáblázatBevétel[[#Totals],[8. hét]]-TáblázatKiadások[[#Totals],[8. hét]] -> 0 | K6: =TáblázatBevétel[[#Totals],[9. hét]]-TáblázatKiadások[[#Totals],[9. hét]] -> 0 | L6: =TáblázatBevétel[[#Totals],[10. hét]]-TáblázatKiadások[[#Totals],[10. hét]] -> 0 | M6: =TáblázatBevétel[[#Totals],[11. hét]]-TáblázatKiadások[[#Totals],[11. hét]] -> 0 | N6: =TáblázatBevétel[[#Totals],[12. hét]]-TáblázatKiadások[[#Totals],[12. hét]] -> 0 | O6: =TáblázatBevétel[[#Totals],[13. hét]]-TáblázatKiadások[[#Totals],[13. hét]] -> 0 | P6: =TáblázatBevétel[[#Totals],[14. hét]]-TáblázatKiadások[[#Totals],[14. hét]] -> 0 | Q6: =TáblázatBevétel[[#Totals],[15. hét]]-TáblázatKiadások[[#Totals],[15. hét]] -> 0 | R6: =TáblázatBevétel[[#Totals],[16. hét]]-TáblázatKiadások[[#Totals],[16. hét]] -> 0 | S6: =TáblázatBevétel[[#Totals],[17. hét]]-TáblázatKiadások[[#Totals],[17. hét]] -> 0 | T6: =TáblázatBevétel[[#Totals],[18. hét]]-TáblázatKiadások[[#Totals],[18. hét]] -> 0 | U6: =TáblázatBevétel[[#Totals],[Összesen]]-TáblázatKiadások[[#Totals],[Összesen]] -> 11,894.00 Ft
A8: bevétel
B9: 1. BEVÉTELI TÉTEL | C9: 3,000.00 Ft | D9: 3,500.00 Ft | E9: 2,978.00 Ft | F9: 3,384.00 Ft | G9: 2,858.00 Ft | H9: 2,809.00 Ft | I9: 3,220.00 Ft | U9: =SUM(TáblázatBevétel[[#This Row],[1. hét]:[18. hét]]) -> 21,749.00 Ft
B10: 2. BEVÉTELI TÉTEL | C10: 1,150.00 | D10: 1,200.00 | E10: 1,144.00 | F10: 1,400.00 | G10: 1,358.00 | H10: 1,154.00 | I10: 1,245.00 | U10: =SUM(TáblázatBevétel[[#This Row],[1. hét]:[18. hét]]) -> 8,651.00
B11: 3. BEVÉTELI TÉTEL | C11: 300.00 | D11: 350.00 | E11: 392.00 | F11: 326.00 | G11: 381.00 | H11: 364.00 | I11: 315.00 | U11: =SUM(TáblázatBevétel[[#This Row],[1. hét]:[18. hét]]) -> 2,428.00
B12: BEVÉTEL ÖSSZESEN | C12: =SUBTOTAL(109,TáblázatBevétel[1. hét]) -> 4,450.00 Ft | D12: =SUBTOTAL(109,TáblázatBevétel[2. hét]) -> 5,050.00 Ft | E12: =SUBTOTAL(109,TáblázatBevétel[3. hét]) -> 4,514.00 Ft | F12: =SUBTOTAL(109,TáblázatBevétel[4. hét]) -> 5,110.00 Ft | G12: =SUBTOTAL(109,TáblázatBevétel[5. hét]) -> 4,597.00 Ft | H12: =SUBTOTAL(109,TáblázatBevétel[6. hét]) -> 4,327.00 Ft | I12: =SUBTOTAL(109,TáblázatBevétel[7. hét]) -> 4,780.00 Ft | J12: =SUBTOTAL(109,TáblázatBevétel[8. hét]) -> 0 | K12: =SUBTOTAL(109,TáblázatBevétel[9. hét]) -> 0 | L12: =SUBTOTAL(109,TáblázatBevétel[10. hét]) -> 0 | M12: =SUBTOTAL(109,TáblázatBevétel[11. hét]) -> 0 | N12: =SUBTOTAL(109,TáblázatBevétel[12. hét]) -> 0 | O12: =SUBTOTAL(109,TáblázatBevétel[13. hét]) -> 0 | P12: =SUBTOTAL(109,TáblázatBevétel[14. hét]) -> 0 | Q12: =SUBTOTAL(109,TáblázatBevétel[15. hét]) -> 0 | R12: =SUBTOTAL(109,TáblázatBevétel[16. hét]) -> 0 | S12: =SUBTOTAL(109,TáblázatBevétel[17. hét]) -> 0 | T12: =SUBTOTAL(109,TáblázatBevétel[18. hét]) -> 0 | U12: =SUBTOTAL(109,TáblázatBevétel[Összesen]) -> 32,828.00 Ft
A14: kiadások
B15: BÉREK/FIZETÉSEK | C15: 1,500.00 Ft | D15: 1,577.00 Ft | E15: 1,823.00 Ft | F15: 1,529.00 Ft | G15: 1,759.00 Ft | H15: 1,947.00 Ft | I15: 1,875.00 Ft | U15: =SUM(TáblázatKiadások[[#This Row],[1. hét]:[18. hét]]) -> 12,010.00 Ft
B16: BÉRLETI DÍJ | C16: 1,000.00 | D16: 1,000.00 | E16: 1,000.00 | F16: 1,000.00 | G16: 1,000.00 | H16: 1,000.00 | I16: 1,000.00 | U16: =SUM(TáblázatKiadások[[#This Row],[1. hét]:[18. hét]]) -> 7,000.00
B17: ÁRAM | C17: 40.00 | D17: 43.00 | E17: 40.00 | F17: 42.00 | G17: 45.00 | H17: 40.00 | I17: 42.00 | U17: =SUM(TáblázatKiadások[[#This Row],[1. hét]:[18. hét]]) -> 292.00
B18: TELEFON | C18: 12.00 | D18: 11.00 | E18: 13.00 | F18: 14.00 | G18: 11.00 | H18: 15.00 | I18: 15.00 | U18: =SUM(TáblázatKiadások[[#This Row],[1. hét]:[18. hét]]) -> 91.00
B19: INTERNET | C19: 15.00 | D19: 15.00 | E19: 15.00 | F19: 15.00 | G19: 15.00 | H19: 15.00 | I19: 15.00 | U19: =SUM(TáblázatKiadások[[#This Row],[1. hét]:[18. hét]]) -> 105.00
B20: VÍZ | C20: 11.00 | D20: 10.00 | E20: 13.00 | F20: 10.00 | G20: 13.00 | H20: 10.00 | I20: 12.00 | U20: =SUM(TáblázatKiadások[[#This Row],[1. hét]:[18. hét]]) -> 79.00
B21: GÁZ | C21: 23.00 | D21: 27.00 | E21: 26.00 | F21: 27.00 | G21: 22.00 | H21: 29.00 | I21: 21.00 | U21: =SUM(TáblázatKiadások[[#This Row],[1. hét]:[18. hét]]) -> 175.00
B22: HULLADÉKELSZÁLLÍTÁS | C22: 4.00 | D22: 4.00 | E22: 4.00 | F22: 4.00 | G22: 4.00 | H22: 4.00 | I22: 4.00 | U22: =SUM(TáblázatKiadások[[#This Row],[1. hét]:[18. hét]]) -> 28.00
B23: KÁBELTELEVÍZIÓ | C23: 10.00 | D23: 10.00 | E23: 10.00 | F23: 10.00 | G23: 10.00 | H23: 10.00 | I23: 10.00 | U23: =SUM(TáblázatKiadások[[#This Row],[1. hét]:[18. hét]]) -> 70.00
B24: IRODASZEREK | C24: 25.00 | D24: 57.00 | E24: 68.00 | F24: 146.00 | G24: 125.00 | H24: 111.00 | I24: 132.00 | U24: =SUM(TáblázatKiadások[[#This Row],[1. hét]:[18. hét]]) -> 664.00
B25: BIZTOSÍTÁS | C25: 60.00 | D25: 60.00 | E25: 60.00 | F25: 60.00 | G25: 60.00 | H25: 60.00 | I25: 60.00 | U25: =SUM(TáblázatKiadások[[#This Row],[1. hét]:[18. hét]]) -> 420.00
B26: KIADÁS ÖSSZESEN | C26: =SUBTOTAL(109,TáblázatKiadások[1. hét]) -> 2,700.00 Ft | D26: =SUBTOTAL(109,TáblázatKiadások[2. hét]) -> 2,814.00 Ft | E26: =SUBTOTAL(109,TáblázatKiadások[3. hét]) -> 3,072.00 Ft | F26: =SUBTOTAL(109,TáblázatKiadások[4. hét]) -> 2,857.00 Ft | G26: =SUBTOTAL(109,TáblázatKiadások[5. hét]) -> 3,064.00 Ft | H26: =SUBTOTAL(109,TáblázatKiadások[6. hét]) -> 3,241.00 Ft | I26: =SUBTOTAL(109,TáblázatKiadások[7. hét]) -> 3,186.00 Ft | J26: =SUBTOTAL(109,TáblázatKiadások[8. hét]) -> 0 | K26: =SUBTOTAL(109,TáblázatKiadások[9. hét]) -> 0 | L26: =SUBTOTAL(109,TáblázatKiadások[10. hét]) -> 0 | M26: =SUBTOTAL(109,TáblázatKiadások[11. hét]) -> 0 | N26: =SUBTOTAL(109,TáblázatKiadások[12. hét]) -> 0 | O26: =SUBTOTAL(109,TáblázatKiadások[13. hét]) -> 0 | P26: =SUBTOTAL(109,TáblázatKiadások[14. hét]) -> 0 | Q26: =SUBTOTAL(109,TáblázatKiadások[15. hét]) -> 0 | R26: =SUBTOTAL(109,TáblázatKiadások[16. hét]) -> 0 | S26: =SUBTOTAL(109,TáblázatKiadások[17. hét]) -> 0 | T26: =SUBTOTAL(109,TáblázatKiadások[18. hét]) -> 0 | U26: =SUBTOTAL(109,TáblázatKiadások[Összesen]) -> 20,934.00 Ft
